[Event "Titled Tuesday Blitz March 22 Late 2022"]
[White "Shandrygin, Nikita"]
[Black "Sochacki, Christophe"]
[WhiteFideId "24198668"]
[BlackFideId "662569"]
[WhiteElo "2324"]
[BlackElo "2480"]
[Result "0-1"]
[Round "06"]
[TimeControl "180+1"]
[Date "2022.03.22"]
[WhiteClock "0:00:08"]
[BlackClock "0:00:08"]

1. Nf3 {[%clk 0:03:00]}  Nc6 {[%clk 0:02:59]} 2. d4 {[%clk 0:03:00]}  d6 {[%clk 0:03:00]} 3. g3 {[%clk 0:03:00]}  e5 {[%clk 0:02:58]} 4. dxe5 {[%clk 0:03:01]}  Nxe5 {[%clk 0:02:58]} 5. Nxe5 {[%clk 0:02:59]}  dxe5 {[%clk 0:02:59]} 6. Qxd8+ {[%clk 0:02:59]}  Kxd8 {[%clk 0:03:00]} 7. f3 {[%clk 0:03:00]}  c6 {[%clk 0:03:00]} 8. e4 {[%clk 0:03:00]}  Kc7 {[%clk 0:02:59]} 9. Be3 {[%clk 0:02:59]}  Be6 {[%clk 0:02:48]} 10. Nd2 {[%clk 0:02:58]}  Nf6 {[%clk 0:02:43]} 11. Bc4 {[%clk 0:02:57]}  Re8 {[%clk 0:02:35]} 12. O-O-O {[%clk 0:02:51]}  Nd7 {[%clk 0:02:32]} 13. Bxe6 {[%clk 0:02:28]}  Rxe6 {[%clk 0:02:33]} 14. Nc4 {[%clk 0:02:29]}  Be7 {[%clk 0:01:45]} 15. Rd3 {[%clk 0:02:22]}  b6 {[%clk 0:01:44]} 16. Rhd1 {[%clk 0:02:18]}  Rd8 {[%clk 0:01:44]} 17. a4 {[%clk 0:02:08]}  Nb8 {[%clk 0:01:15]} 18. f4 {[%clk 0:01:19]}  Rxd3 {[%clk 0:01:09]} 19. cxd3 {[%clk 0:01:19]}  exf4 {[%clk 0:00:57]} 20. gxf4 {[%clk 0:01:15]}  Rh6 {[%clk 0:00:53]} 21. Rd2 {[%clk 0:01:13]}  Na6 {[%clk 0:00:48]} 22. Rg2 {[%clk 0:01:05]}  g6 {[%clk 0:00:45]} 23. a5 {[%clk 0:00:37]}  Bc5 {[%clk 0:00:42]} 24. axb6+ {[%clk 0:00:36]}  axb6 {[%clk 0:00:42]} 25. d4 {[%clk 0:00:35]}  Be7 {[%clk 0:00:39]} 26. f5 {[%clk 0:00:21]}  Rh3 {[%clk 0:00:38]} 27. Bf4+ {[%clk 0:00:19]}  Kd8 {[%clk 0:00:31]} 28. Ne5 {[%clk 0:00:19]}  Nb4 {[%clk 0:00:26]} 29. Kb1 {[%clk 0:00:17]}  f6 {[%clk 0:00:25]} 30. fxg6 {[%clk 0:00:14]}  hxg6 {[%clk 0:00:23]} 31. Nxg6 {[%clk 0:00:15]}  Rf3 {[%clk 0:00:21]} 32. Bc1 {[%clk 0:00:15]}  Rf1 {[%clk 0:00:20]} 33. Rd2 {[%clk 0:00:14]}  Bd6 {[%clk 0:00:20]} 34. e5 {[%clk 0:00:14]}  Bc7 {[%clk 0:00:20]} 35. b3 {[%clk 0:00:13]}  Ke8 {[%clk 0:00:18]} 36. Nh4 {[%clk 0:00:10]}  fxe5 {[%clk 0:00:16]} 37. dxe5 {[%clk 0:00:10]}  Bd8 {[%clk 0:00:08]} 38. Ng2 {[%clk 0:00:06]}  Bg5 {[%clk 0:00:09]} 39. Kb2 {[%clk 0:00:04]}  Bxd2 {[%clk 0:00:06]} 40. Bxd2 {[%clk 0:00:05]}  Rf2 {[%clk 0:00:07]} 41. Nf4 {[%clk 0:00:03]}  Rxd2+ {[%clk 0:00:07]} 42. Kc3 {[%clk 0:00:04]}  Rf2 {[%clk 0:00:06]} 43. Ne6 {[%clk 0:00:03]}  Nd5+ {[%clk 0:00:06]} 44. Kd4 {[%clk 0:00:03]}  Rxh2 {[%clk 0:00:07]} 45. Ng7+ {[%clk 0:00:03]}  Ke7 {[%clk 0:00:07]} 46. Nf5+ {[%clk 0:00:04]}  Ke6 {[%clk 0:00:07]} 47. Ng7+ {[%clk 0:00:05]}  Kf7 {[%clk 0:00:07]} 48. Nf5 {[%clk 0:00:06]}  Rf2 {[%clk 0:00:06]} 49. Nd6+ {[%clk 0:00:06]}  Ke6 {[%clk 0:00:07]} 50. Ne4 {[%clk 0:00:07]}  Rf4 {[%clk 0:00:07]} 51. Kd3 {[%clk 0:00:07]}  Kxe5 {[%clk 0:00:07]} 52. Nd2 {[%clk 0:00:08]}  Rd4+ {[%clk 0:00:07]} 53. Kc2 {[%clk 0:00:08]}  Ne3+ {[%clk 0:00:08]} 54. Kc3 {[%clk 0:00:08]}  Rxd2 {[%clk 0:00:08]} 55. Kxd2 {[%clk 0:00:08]}  Kd4 {[%clk 0:00:08]} 0-1


[Site "https://www.chess.com"]

[Event "Titled Tuesday Blitz March 22 Late 2022"]
[White "Sharafiev, Azat"]
[Black "Bok, Benjamin"]
[WhiteFideId "4186214"]
[BlackFideId "1017063"]
[WhiteElo "2299"]
[BlackElo "2658"]
[Result "1/2-1/2"]
[Round "06"]
[TimeControl "180+1"]
[Date "2022.03.22"]
[WhiteClock "0:00:13"]
[BlackClock "0:00:06"]

1. d4 {[%clk 0:02:59]}  Nf6 {[%clk 0:02:58]} 2. Nf3 {[%clk 0:02:59]}  d5 {[%clk 0:02:56]} 3. c3 {[%clk 0:02:58]}  c6 {[%clk 0:02:54]} 4. Bf4 {[%clk 0:02:53]}  Bf5 {[%clk 0:02:53]} 5. Qb3 {[%clk 0:02:47]}  Qb6 {[%clk 0:02:52]} 6. Qxb6 {[%clk 0:02:48]}  axb6 {[%clk 0:02:52]} 7. Nbd2 {[%clk 0:02:47]}  b5 {[%clk 0:02:52]} 8. e3 {[%clk 0:02:45]}  h6 {[%clk 0:02:52]} 9. Be2 {[%clk 0:02:37]}  e6 {[%clk 0:02:50]} 10. O-O {[%clk 0:02:35]}  Nbd7 {[%clk 0:02:46]} 11. Ne5 {[%clk 0:02:30]}  Be7 {[%clk 0:02:42]} 12. Nxd7 {[%clk 0:02:28]}  Nxd7 {[%clk 0:02:43]} 13. f3 {[%clk 0:02:27]}  O-O {[%clk 0:02:39]} 14. e4 {[%clk 0:02:28]}  Bg6 {[%clk 0:02:40]} 15. Rf2 {[%clk 0:02:00]}  Rfc8 {[%clk 0:02:35]} 16. a3 {[%clk 0:01:55]}  Nb6 {[%clk 0:02:35]} 17. Bd3 {[%clk 0:01:51]}  b4 {[%clk 0:02:16]} 18. Rb1 {[%clk 0:01:38]}  bxc3 {[%clk 0:02:10]} 19. bxc3 {[%clk 0:01:38]}  Bd8 {[%clk 0:02:06]} 20. Bd6 {[%clk 0:01:31]}  Na4 {[%clk 0:01:54]} 21. Rxb7 {[%clk 0:01:29]}  Nxc3 {[%clk 0:01:53]} 22. Nb3 {[%clk 0:01:29]}  dxe4 {[%clk 0:01:40]} 23. fxe4 {[%clk 0:01:28]}  Bg5 {[%clk 0:01:40]} 24. Bf4 {[%clk 0:01:17]}  Rxa3 {[%clk 0:01:33]} 25. Bxg5 {[%clk 0:01:10]}  hxg5 {[%clk 0:01:34]} 26. Nc5 {[%clk 0:01:10]}  Rd8 {[%clk 0:01:27]} 27. h4 {[%clk 0:00:30]}  gxh4 {[%clk 0:01:11]} 28. e5 {[%clk 0:00:30]}  Bxd3 {[%clk 0:00:58]} 29. Nxd3 {[%clk 0:00:30]}  Ne2+ {[%clk 0:00:48]} 30. Rxe2 {[%clk 0:00:30]}  Rxd3 {[%clk 0:00:48]} 31. Rf2 {[%clk 0:00:31]}  R8xd4 {[%clk 0:00:44]} 32. Rbxf7 {[%clk 0:00:15]}  Rg4 {[%clk 0:00:40]} 33. Re7 {[%clk 0:00:13]}  h3 {[%clk 0:00:10]} 34. Rxe6 {[%clk 0:00:12]}  Rdg3 {[%clk 0:00:10]} 35. Rxc6 {[%clk 0:00:10]}  Rxg2+ {[%clk 0:00:10]} 36. Rxg2 {[%clk 0:00:11]}  Rxg2+ {[%clk 0:00:10]} 37. Kh1 {[%clk 0:00:12]}  g5 {[%clk 0:00:09]} 38. e6 {[%clk 0:00:10]}  Re2 {[%clk 0:00:07]} 39. Rc5 {[%clk 0:00:09]}  g4 {[%clk 0:00:04]} 40. Rg5+ {[%clk 0:00:09]}  Kf8 {[%clk 0:00:04]} 41. Rxg4 {[%clk 0:00:09]}  Rxe6 {[%clk 0:00:05]} 42. Rg3 {[%clk 0:00:09]}  Rh6 {[%clk 0:00:04]} 43. Kh2 {[%clk 0:00:09]}  Ra6 {[%clk 0:00:05]} 44. Rxh3 {[%clk 0:00:10]}  Kf7 {[%clk 0:00:05]} 45. Rg3 {[%clk 0:00:11]}  Kf6 {[%clk 0:00:05]} 46. Rf3+ {[%clk 0:00:10]}  Kg5 {[%clk 0:00:06]} 47. Kg3 {[%clk 0:00:11]}  Ra5 {[%clk 0:00:06]} 48. Re3 {[%clk 0:00:11]}  Ra4 {[%clk 0:00:06]} 49. Rf3 {[%clk 0:00:12]}  Kg6 {[%clk 0:00:06]} 50. Rf4 {[%clk 0:00:12]}  Ra1 {[%clk 0:00:07]} 51. Rf3 {[%clk 0:00:12]}  Ra4 {[%clk 0:00:07]} 52. Rf4 {[%clk 0:00:13]}  Rxf4 {[%clk 0:00:06]} 53. Kxf4 {[%clk 0:00:13]} 1/2-1/2


[Site "https://www.chess.com"]

[Event "Titled Tuesday Blitz March 22 Late 2022"]
[White "Shimanov, Aleksandr"]
[Black "Domingo Nunez, Alejandro"]
[WhiteFideId "4198603"]
[BlackFideId "22245561"]
[WhiteElo "2636"]
[BlackElo "2215"]
[Result "1-0"]
[Round "06"]
[TimeControl "180+1"]
[Date "2022.03.22"]
[WhiteClock "0:00:41"]
[BlackClock "0:00:06"]

1. e4 {[%clk 0:03:00]}  g6 {[%clk 0:03:00]} 2. d4 {[%clk 0:02:54]}  Bg7 {[%clk 0:03:01]} 3. c4 {[%clk 0:02:50]}  d6 {[%clk 0:03:00]} 4. Nc3 {[%clk 0:02:50]}  Nd7 {[%clk 0:03:01]} 5. Be3 {[%clk 0:02:50]}  e5 {[%clk 0:02:58]} 6. Nge2 {[%clk 0:02:49]}  h5 {[%clk 0:02:54]} 7. Qd2 {[%clk 0:02:45]}  a6 {[%clk 0:02:43]} 8. f3 {[%clk 0:02:42]}  h4 {[%clk 0:02:26]} 9. Rg1 {[%clk 0:02:32]}  Bh6 {[%clk 0:02:00]} 10. f4 {[%clk 0:02:30]}  Ngf6 {[%clk 0:01:53]} 11. g4 {[%clk 0:02:11]}  hxg3 {[%clk 0:01:43]} 12. hxg3 {[%clk 0:02:07]}  Ng4 {[%clk 0:01:41]} 13. O-O-O {[%clk 0:02:07]}  b5 {[%clk 0:01:11]} 14. dxe5 {[%clk 0:01:56]}  Nxe3 {[%clk 0:01:08]} 15. Qxe3 {[%clk 0:01:56]}  Nxe5 {[%clk 0:01:08]} 16. Nd4 {[%clk 0:01:53]}  Bg4 {[%clk 0:00:57]} 17. Rd2 {[%clk 0:01:47]}  c5 {[%clk 0:00:40]} 18. Nc2 {[%clk 0:01:22]}  Nf3 {[%clk 0:00:40]} 19. cxb5 {[%clk 0:01:21]}  O-O {[%clk 0:00:36]} 20. Rh1 {[%clk 0:01:20]}  Nxd2 {[%clk 0:00:35]} 21. Qxd2 {[%clk 0:01:19]}  Bg7 {[%clk 0:00:32]} 22. bxa6 {[%clk 0:01:08]}  Re8 {[%clk 0:00:23]} 23. Ne3 {[%clk 0:01:03]}  Bf3 {[%clk 0:00:22]} 24. Rh4 {[%clk 0:00:58]}  Bxe4 {[%clk 0:00:15]} 25. Bc4 {[%clk 0:00:55]}  Ra7 {[%clk 0:00:12]} 26. Bb5 {[%clk 0:00:42]}  Rf8 {[%clk 0:00:11]} 27. Nxe4 {[%clk 0:00:42]}  Qa8 {[%clk 0:00:08]} 28. Nd5 {[%clk 0:00:41]}  Rxa6 {[%clk 0:00:06]} 29. Ne7# {[%clk 0:00:41]} 1-0


[Site "https://www.chess.com"]

[Event "Titled Tuesday Blitz March 22 Late 2022"]
[White "Svane, Rasmus"]
[Black "Jones, Gawain C B"]
[WhiteFideId "4657101"]
[BlackFideId "409561"]
[WhiteElo "2645"]
[BlackElo "2657"]
[Result "0-1"]
[Round "06"]
[TimeControl "180+1"]
[Date "2022.03.22"]
[WhiteClock "0:00:30"]
[BlackClock "0:01:28"]

1. Nf3 {[%clk 0:03:00]}  g6 {[%clk 0:02:59]} 2. d4 {[%clk 0:03:00]}  Nf6 {[%clk 0:02:59]} 3. g3 {[%clk 0:03:00]}  Bg7 {[%clk 0:02:58]} 4. Bg2 {[%clk 0:03:00]}  c5 {[%clk 0:02:59]} 5. dxc5 {[%clk 0:02:58]}  Qa5+ {[%clk 0:02:59]} 6. Nc3 {[%clk 0:02:43]}  Ne4 {[%clk 0:02:56]} 7. O-O {[%clk 0:02:13]}  Nxc3 {[%clk 0:02:56]} 8. bxc3 {[%clk 0:02:14]}  Qxc3 {[%clk 0:02:56]} 9. Rb1 {[%clk 0:02:09]}  Qxc5 {[%clk 0:02:56]} 10. Be3 {[%clk 0:02:10]}  Qc4 {[%clk 0:02:51]} 11. Bd4 {[%clk 0:02:02]}  O-O {[%clk 0:02:48]} 12. Bxg7 {[%clk 0:01:56]}  Kxg7 {[%clk 0:02:49]} 13. Qd4+ {[%clk 0:01:57]}  Qxd4 {[%clk 0:02:49]} 14. Nxd4 {[%clk 0:01:58]}  Nc6 {[%clk 0:02:48]} 15. Nb5 {[%clk 0:01:56]}  b6 {[%clk 0:02:32]} 16. Rfd1 {[%clk 0:01:46]}  a6 {[%clk 0:02:00]} 17. Nd4 {[%clk 0:01:42]}  Rb8 {[%clk 0:01:59]} 18. Bxc6 {[%clk 0:01:05]}  dxc6 {[%clk 0:02:00]} 19. Nxc6 {[%clk 0:01:06]}  Rb7 {[%clk 0:02:00]} 20. c4 {[%clk 0:01:05]}  Bf5 {[%clk 0:01:56]} 21. Rb4 {[%clk 0:01:05]}  Rc8 {[%clk 0:01:49]} 22. Nd4 {[%clk 0:01:04]}  Bd7 {[%clk 0:01:35]} 23. Rdb1 {[%clk 0:01:04]}  Rbc7 {[%clk 0:01:35]} 24. Rxb6 {[%clk 0:01:01]}  Rxc4 {[%clk 0:01:35]} 25. Nf3 {[%clk 0:00:50]}  Bh3 {[%clk 0:01:31]} 26. Re1 {[%clk 0:00:38]}  Rc1 {[%clk 0:01:29]} 27. Rb5 {[%clk 0:00:30]}  axb5 {[%clk 0:01:28]} 0-1


[Site "https://www.chess.com"]

[Event "Titled Tuesday Blitz March 22 Late 2022"]
[White "Taichman, Ori"]
[Black "Donchenko, Anatoly"]
[WhiteFideId "2804069"]
[BlackFideId "4106091"]
[WhiteElo "2227"]
[BlackElo "2339"]
[Result "1-0"]
[Round "06"]
[TimeControl "180+1"]
[Date "2022.03.22"]
[WhiteClock "0:01:09"]
[BlackClock "0:00:26"]

1. e4 {[%clk 0:03:00]}  c6 {[%clk 0:02:58]} 2. d4 {[%clk 0:02:59]}  d5 {[%clk 0:02:57]} 3. e5 {[%clk 0:02:59]}  Bf5 {[%clk 0:02:57]} 4. h4 {[%clk 0:02:59]}  h5 {[%clk 0:02:54]} 5. Bd3 {[%clk 0:02:59]}  Bxd3 {[%clk 0:02:53]} 6. Qxd3 {[%clk 0:03:00]}  e6 {[%clk 0:02:52]} 7. Bg5 {[%clk 0:03:00]}  Qb6 {[%clk 0:02:50]} 8. Nd2 {[%clk 0:03:01]}  Ne7 {[%clk 0:02:45]} 9. c4 {[%clk 0:03:00]}  Nf5 {[%clk 0:02:43]} 10. Ngf3 {[%clk 0:02:58]}  Qa6 {[%clk 0:02:40]} 11. O-O {[%clk 0:02:57]}  Nd7 {[%clk 0:02:36]} 12. a4 {[%clk 0:02:54]}  Nb6 {[%clk 0:02:31]} 13. b3 {[%clk 0:02:54]}  Be7 {[%clk 0:02:29]} 14. a5 {[%clk 0:02:54]}  Nd7 {[%clk 0:02:26]} 15. Bxe7 {[%clk 0:02:50]}  Nxe7 {[%clk 0:02:24]} 16. b4 {[%clk 0:02:47]}  dxc4 {[%clk 0:02:20]} 17. Nxc4 {[%clk 0:02:48]}  Nf5 {[%clk 0:02:19]} 18. Nd6+ {[%clk 0:02:30]}  Nxd6 {[%clk 0:02:17]} 19. Qxa6 {[%clk 0:02:30]}  bxa6 {[%clk 0:02:16]} 20. exd6 {[%clk 0:02:31]}  Rb8 {[%clk 0:02:07]} 21. Rfc1 {[%clk 0:02:29]}  O-O {[%clk 0:01:57]} 22. Rxc6 {[%clk 0:02:18]}  Rxb4 {[%clk 0:01:56]} 23. Rxa6 {[%clk 0:02:16]}  Rb7 {[%clk 0:01:56]} 24. Rc6 {[%clk 0:02:11]}  Rfb8 {[%clk 0:01:46]} 25. Ne5 {[%clk 0:02:09]}  f6 {[%clk 0:01:35]} 26. Nc4 {[%clk 0:01:25]}  Kf7 {[%clk 0:01:21]} 27. a6 {[%clk 0:01:24]}  Rb1+ {[%clk 0:01:21]} 28. Rxb1 {[%clk 0:01:24]}  Rxb1+ {[%clk 0:01:20]} 29. Kh2 {[%clk 0:01:25]}  Ra1 {[%clk 0:01:17]} 30. Rc7 {[%clk 0:01:24]}  Ke8 {[%clk 0:01:17]} 31. Rc8+ {[%clk 0:01:22]}  Kf7 {[%clk 0:01:15]} 32. Rc7 {[%clk 0:01:23]}  Ke8 {[%clk 0:01:14]} 33. Rxa7 {[%clk 0:01:23]}  Ra4 {[%clk 0:01:10]} 34. Rxd7 {[%clk 0:01:23]}  Rxc4 {[%clk 0:01:08]} 35. Rxg7 {[%clk 0:01:23]}  Rxd4 {[%clk 0:01:07]} 36. a7 {[%clk 0:01:23]}  Rxh4+ {[%clk 0:01:06]} 37. Kg1 {[%clk 0:01:23]}  Ra4 {[%clk 0:01:03]} 38. a8=Q+ {[%clk 0:01:23]}  Rxa8 {[%clk 0:00:33]} 39. Rg8+ {[%clk 0:01:24]}  Kd7 {[%clk 0:00:32]} 40. Rxa8 {[%clk 0:01:25]}  Kxd6 {[%clk 0:00:32]} 41. Rh8 {[%clk 0:01:15]}  Ke5 {[%clk 0:00:30]} 42. Rxh5+ {[%clk 0:01:15]}  f5 {[%clk 0:00:31]} 43. g4 {[%clk 0:01:15]}  Kf4 {[%clk 0:00:30]} 44. gxf5 {[%clk 0:01:13]}  exf5 {[%clk 0:00:31]} 45. Kg2 {[%clk 0:01:13]}  Kg4 {[%clk 0:00:31]} 46. Rh8 {[%clk 0:01:13]}  Kf4 {[%clk 0:00:29]} 47. Re8 {[%clk 0:01:11]}  Kg4 {[%clk 0:00:29]} 48. f3+ {[%clk 0:01:11]}  Kf4 {[%clk 0:00:28]} 49. Kf2 {[%clk 0:01:11]}  Kg5 {[%clk 0:00:28]} 50. Kg3 {[%clk 0:01:12]}  Kh5 {[%clk 0:00:28]} 51. Kf4 {[%clk 0:01:11]}  Kh4 {[%clk 0:00:27]} 52. Ra8 {[%clk 0:01:08]}  Kh5 {[%clk 0:00:26]} 53. Ra6 {[%clk 0:01:08]}  Kh4 {[%clk 0:00:26]} 54. Rh6# {[%clk 0:01:09]} 1-0


[Site "https://www.chess.com"]

[Event "Titled Tuesday Blitz March 22 Late 2022"]
[White "Tsukerman, Julia"]
[Black "Oro, Luis"]
[WhiteFideId "2621649"]
[BlackFideId "104094"]
[WhiteElo "2114"]
[BlackElo "2317"]
[Result "0-1"]
[Round "06"]
[TimeControl "180+1"]
[Date "2022.03.22"]
[WhiteClock "0:00:59"]
[BlackClock "0:01:37"]

1. e4 {[%clk 0:02:57]}  c5 {[%clk 0:02:58]} 2. Nf3 {[%clk 0:02:55]}  d6 {[%clk 0:02:59]} 3. d4 {[%clk 0:02:55]}  cxd4 {[%clk 0:02:59]} 4. Nxd4 {[%clk 0:02:56]}  Nf6 {[%clk 0:03:00]} 5. Nc3 {[%clk 0:02:57]}  a6 {[%clk 0:03:00]} 6. Be3 {[%clk 0:02:58]}  e5 {[%clk 0:03:00]} 7. Nb3 {[%clk 0:02:57]}  Be7 {[%clk 0:03:01]} 8. f3 {[%clk 0:02:57]}  Be6 {[%clk 0:03:02]} 9. Qd2 {[%clk 0:02:57]}  O-O {[%clk 0:03:02]} 10. O-O-O {[%clk 0:02:57]}  b5 {[%clk 0:03:02]} 11. Kb1 {[%clk 0:02:55]}  Nbd7 {[%clk 0:03:02]} 12. g4 {[%clk 0:02:55]}  b4 {[%clk 0:03:03]} 13. Nd5 {[%clk 0:02:53]}  Bxd5 {[%clk 0:03:00]} 14. exd5 {[%clk 0:02:54]}  Nb6 {[%clk 0:03:00]} 15. Bxb6 {[%clk 0:02:52]}  Qxb6 {[%clk 0:03:01]} 16. h4 {[%clk 0:02:49]}  a5 {[%clk 0:03:01]} 17. h5 {[%clk 0:02:47]}  a4 {[%clk 0:03:00]} 18. Nc1 {[%clk 0:02:46]}  Nd7 {[%clk 0:02:58]} 19. g5 {[%clk 0:02:38]}  Nc5 {[%clk 0:02:53]} 20. Bh3 {[%clk 0:02:17]}  Qb5 {[%clk 0:02:37]} 21. Bf5 {[%clk 0:02:01]}  Qc4 {[%clk 0:02:13]} 22. Qf2 {[%clk 0:01:32]}  b3 {[%clk 0:01:56]} 23. cxb3 {[%clk 0:01:28]}  axb3 {[%clk 0:01:55]} 24. a3 {[%clk 0:01:29]}  Bxg5 {[%clk 0:01:45]} 25. Rhg1 {[%clk 0:01:10]}  Qf4 {[%clk 0:01:39]} 26. Nd3 {[%clk 0:00:59]}  Qxf5 {[%clk 0:01:37]} 0-1


[Site "https://www.chess.com"]

[Event "Titled Tuesday Blitz March 22 Late 2022"]
[White "Zhigalko, Sergei"]
[Black "Papp, Levente"]
[WhiteFideId "13502956"]
[BlackFideId "751243"]
[WhiteElo "2662"]
[BlackElo "2308"]
[Result "1-0"]
[Round "06"]
[TimeControl "180+1"]
[Date "2022.03.22"]
[WhiteClock "0:00:49"]
[BlackClock "0:00:03"]

1. e4 {[%clk 0:03:00]}  e6 {[%clk 0:03:00]} 2. d4 {[%clk 0:03:00]}  d5 {[%clk 0:03:00]} 3. e5 {[%clk 0:03:00]}  c5 {[%clk 0:03:00]} 4. c3 {[%clk 0:03:01]}  Nc6 {[%clk 0:02:59]} 5. Nf3 {[%clk 0:03:01]}  Qb6 {[%clk 0:02:59]} 6. a3 {[%clk 0:03:01]}  c4 {[%clk 0:03:00]} 7. Nbd2 {[%clk 0:02:58]}  Na5 {[%clk 0:03:00]} 8. Be2 {[%clk 0:02:58]}  Bd7 {[%clk 0:03:00]} 9. O-O {[%clk 0:02:58]}  h6 {[%clk 0:02:55]} 10. Rb1 {[%clk 0:02:57]}  Ne7 {[%clk 0:02:23]} 11. h4 {[%clk 0:02:48]}  O-O-O {[%clk 0:02:15]} 12. h5 {[%clk 0:02:47]}  g6 {[%clk 0:02:11]} 13. Re1 {[%clk 0:02:39]}  Kb8 {[%clk 0:02:06]} 14. Nh2 {[%clk 0:02:32]}  Nf5 {[%clk 0:02:02]} 15. Ng4 {[%clk 0:02:30]}  Be7 {[%clk 0:02:01]} 16. Nf6 {[%clk 0:02:22]}  Bc8 {[%clk 0:01:34]} 17. Bg4 {[%clk 0:02:18]}  Ng7 {[%clk 0:01:31]} 18. Nf3 {[%clk 0:02:17]}  gxh5 {[%clk 0:01:21]} 19. Nxh5 {[%clk 0:02:14]}  Nxh5 {[%clk 0:01:21]} 20. Bxh5 {[%clk 0:02:15]}  Rdf8 {[%clk 0:01:15]} 21. Bf4 {[%clk 0:02:14]}  Bd7 {[%clk 0:01:04]} 22. g3 {[%clk 0:02:11]}  Nb3 {[%clk 0:01:01]} 23. Kg2 {[%clk 0:02:10]}  Ba4 {[%clk 0:01:01]} 24. Qe2 {[%clk 0:02:10]}  Na5 {[%clk 0:00:58]} 25. Rh1 {[%clk 0:02:09]}  Nc6 {[%clk 0:00:47]} 26. Qd2 {[%clk 0:01:55]}  Qb3 {[%clk 0:00:41]} 27. Bxh6 {[%clk 0:01:50]}  Rd8 {[%clk 0:00:22]} 28. Bxf7 {[%clk 0:01:48]}  Qc2 {[%clk 0:00:20]} 29. Bxe6 {[%clk 0:01:41]}  Rxh6 {[%clk 0:00:16]} 30. Qxh6 {[%clk 0:01:36]}  Qe4 {[%clk 0:00:09]} 31. Qf4 {[%clk 0:01:30]}  Bc2 {[%clk 0:00:08]} 32. Rbe1 {[%clk 0:01:24]}  Qg6 {[%clk 0:00:07]} 33. Qh6 {[%clk 0:01:18]}  Qe8 {[%clk 0:00:04]} 34. Qh5 {[%clk 0:01:10]}  Qf8 {[%clk 0:00:03]} 35. Qf7 {[%clk 0:01:09]}  Be4 {[%clk 0:00:02]} 36. Qxf8 {[%clk 0:01:01]}  Rxf8 {[%clk 0:00:03]} 37. Rxe4 {[%clk 0:01:02]}  dxe4 {[%clk 0:00:03]} 38. Nd2 {[%clk 0:01:03]}  e3 {[%clk 0:00:02]} 39. fxe3 {[%clk 0:01:03]}  b5 {[%clk 0:00:03]} 40. Ne4 {[%clk 0:01:02]}  a5 {[%clk 0:00:03]} 41. Rh7 {[%clk 0:00:56]}  Bd8 {[%clk 0:00:03]} 42. Nc5 {[%clk 0:00:51]}  Re8 {[%clk 0:00:01]} 43. Bd7 {[%clk 0:00:51]}  Re7 {[%clk 0:00:02]} 44. Rh8 {[%clk 0:00:49]}  Kc7 {[%clk 0:00:02]} 45. Bxc6 {[%clk 0:00:49]}  Kxc6 {[%clk 0:00:03]} 1-0


[Site "https://www.chess.com"]